fUSD/lending_fUSD_20251113
["ID","MTS","AMOUNT","RATE_DAILY","PERIOD"]
[393868344,1763051431667,-19.86371778,0.00017464,2]
[393868348,1763051431734,-175.13628222,0.00017464,2]
[393868350,1763051431745,-95.90094278,0.00017472,2]
[393868353,1763051431760,-204.09905722,0.00017472,2]
[393868354,1763051431770,-280.01371778,0.00017472,2]
[393868363,1763051431844,-19.98628222,0.00017472,2]
[393868365,1763051431854,-1200.0,0.00017472,2]
[393868366,1763051431863,-510.09371407,0.00017473,2]
[393868367,1763051431873,-500.0,0.00017473,2]
[393868368,1763051431882,-500.0,0.00017473,2]
[393868369,1763051431892,-217482.21298732,0.00017473,2]
[393868370,1763051434315,1473.39,0.00016438,2]
[393868407,1763051439921,-3497.15023252,0.00017473,2]
[393868408,1763051439932,-250.0,0.00017496,2]
[393868409,1763051439942,-157719.46513873,0.0001753,2]
[393868410,1763051439951,-1000.0,0.00017555,2]
[393868411,1763051439966,-33305.0021,0.00017555,2]
[393868412,1763051439976,-1000.0,0.00017555,2]
[393868413,1763051439986,-2466.2974,0.00017555,2]
[393868414,1763051439998,-500.0,0.00017573,2]
[393868415,1763051440008,-160.67830336,0.00017573,2]
[393868416,1763051440017,-500.0,0.00017573,2]
[393868417,1763051440027,-500.0,0.00017573,2]
[393868418,1763051440036,-599.95401361,0.00017573,2]
[393868419,1763051440046,-577.38176489,0.00017573,2]
[393868420,1763051440055,-500.0,0.00017573,2]
[393868421,1763051440064,-500.0,0.00017573,2]
[393868422,1763051440073,-518.75704326,0.00017573,2]
[393868423,1763051440082,-500.0,0.00017573,2]
[393868424,1763051440265,-500.0,0.00017573,2]
[393868425,1763051440276,-166.38745637,0.00017654,2]
[393868426,1763051440286,-124934.03984747,0.00017655,2]
[393868427,1763051440295,-200.0,0.00017655,2]
[393868428,1763051440305,-500.0,0.00017673,2]
[393868429,1763051440316,-500.0,0.00017673,2]
[393868430,1763051440341,-500.0,0.00017673,2]
[393868431,1763051440352,-564.13130945,0.00017673,2]
[393868432,1763051440362,-420.55488075,0.00017673,2]
[393868433,1763051440372,-500.91557619,0.00017673,2]
[393868434,1763051440383,-500.0,0.00017673,2]
[393868435,1763051440392,-500.99327438,0.00017673,2]
[393868436,1763051440404,-500.0,0.00017682,2]
[393868437,1763051440417,-1000.0,0.00017699,2]
[393868438,1763051440426,-6024.12,0.000177,2]
[393868439,1763051440436,-151.0,0.000177,2]
[393868440,1763051440446,-200.0,0.000177,2]
[393868441,1763051440458,-2598.78715,0.000177,2]
[393868442,1763051440468,-999.0,0.0001787,3]
[393868443,1763051440478,-200.0,0.00017877,2]
[393868444,1763051440488,-500.0,0.000179,6]
[393868445,1763051440498,-2598.78715,0.0001793,2]
[393868446,1763051440509,-23227.84571964,0.00017938,2]
[393868447,1763051440519,-428.29,0.00017941,2]
[393868448,1763051440532,-500.0,0.00017973,2]
[393868449,1763051440542,-500.0,0.00017973,2]
[393868450,1763051440552,-500.0,0.00017973,2]
[393868451,1763051440562,-500.0,0.00017973,2]
[393868452,1763051440572,-500.0,0.00017973,2]
[393868453,1763051440581,-241.31883888,0.00018,2]
[393868454,1763051440591,-227575.64937508,0.00018,2]
[393868455,1763051440600,-1000.0,0.00018021,2]
[393868456,1763051440610,-200.0,0.00018056,2]
[393868457,1763051440620,-377.73,0.00018057,2]
[393868458,1763051440630,-1000.0,0.00018082,2]
[393868459,1763051440640,-1000.0,0.00018121,2]
[393868460,1763051440650,-3039.85,0.00018195,2]
[393868461,1763051440659,-628.78917675,0.00018221,2]
[393868462,1763051440669,-504.15122996,0.00018221,2]
[393868463,1763051440679,-200.0,0.00018236,2]
[393868464,1763051440689,-250.0,0.00018335,2]
[393868465,1763051440699,-2598.78715,0.0001843,2]
[393868466,1763051440711,-537.03503574,0.00018521,2]
[393868467,1763051440722,-1500.0,0.00018568,2]
[393868468,1763051440732,-547.4,0.00018626,2]
[393868469,1763051440742,-228.07618764,0.00018663,2]
[393868470,1763051440754,-1259.58284128,0.00018668,2]
[393868471,1763051440763,-7518.16,0.00018682,2]
[393868472,1763051440773,-3457.61,0.00018738,2]
[393868473,1763051440785,-1000.0,0.0001876,2]
[393868474,1763051440795,-203.77748477,0.00018768,2]
[393868475,1763051440805,-195.0,0.00018771,2]
[393868476,1763051440815,-250.0,0.00018771,2]
[393868477,1763051440824,-300.0,0.00018771,2]
[393868478,1763051440834,-195.0,0.00018771,2]
[393868479,1763051440844,-5000.0,0.00018771,4]
[393868480,1763051440856,-289.78265788,0.00018846,2]
[393868481,1763051440866,-500.0,0.00018926,2]
[393868482,1763051440876,-500.0,0.00018926,2]
[393868483,1763051440887,-73911.94943621,0.00018926,2]
[393868484,1763051440921,-422.89223244,0.00018926,2]
[393868485,1763051440933,-505.55,0.00018926,2]
[393868486,1763051442572,500.0,0.00016965,2]
[393868502,1763051446029,-1013.8128,0.00018926,2]
[393868503,1763051446053,-10115.0,0.00018926,2]
[393868504,1763051446092,-302.65000007,0.00018926,2]
[393868505,1763051446105,-319.67,0.00018926,2]
[393868506,1763051446126,-450.0750025,0.00018926,2]
[393868507,1763051446138,-643.01052878,0.00018926,2]
[393868508,1763051446148,-150.0,0.00018926,2]
[393868509,1763051446158,-2598.78715,0.0001893,2]
[393868510,1763051446168,-428.29,0.00018937,2]
[393868511,1763051446179,-150.0,0.00018961,2]
[393868512,1763051446188,-502.24672666,0.00018973,2]
[393868513,1763051446198,-501.4797877,0.00018973,2]
[393868514,1763051446210,-500.73154495,0.00018973,2]
[393868515,1763051446220,-501.62599125,0.00018973,2]
[393868516,1763051446229,-500.0,0.00018973,2]
[393868517,1763051446239,-648.29854026,0.00018973,2]
[393868518,1763051446248,-506.63145849,0.00018973,2]
[393868519,1763051446257,-500.0,0.00018973,2]
[393868520,1763051446267,-500.0,0.00018973,2]
[393868521,1763051446276,-500.0,0.00018973,2]
[393868522,1763051446286,-280.69464654,0.00018973,2]
[393868523,1763051446296,-500.0,0.00018973,2]
[393868524,1763051446305,-624.14,0.00018973,2]
[393868525,1763051446314,-325.48042217,0.00019,2]
[393868526,1763051446323,-2529.99079163,0.00019,2]
[393868527,1763051446335,-246.17076783,0.00019,2]
[393868528,1763051446350,-420.0,0.00019074,2]
[393868529,1763051446359,-1000.0,0.00019116,2]
[393868530,1763051446368,-45.54988138,0.00019168,2]
[393868531,1763051446388,-1634.45011862,0.00019168,2]
[393868532,1763051446398,-193.0,0.00019168,2]
[393868533,1763051446407,-58.92893054,0.00019178,2]
[393868534,1763051446425,-141.07106946,0.00019178,2]
[393868535,1763051446435,-829.3984952,0.00019198,2]
[393868538,1763051446847,-170.6015048,0.00019198,2]
[393868540,1763051446857,-84.26315348,0.00019201,2]
[393868541,1763051447067,-215.73684652,0.00019201,2]
[393868542,1763051447077,-284.21108294,0.00019201,2]
[393868543,1763051447086,-195.0,0.00019201,2]
[393868544,1763051447096,-962.44247225,0.00019202,2]
[393868545,1763051447106,-250.0,0.0001922,2]
[393868546,1763051447115,-1328.42367072,0.0001922,2]
[393868547,1763051447125,-624.14,0.00019247,2]
[393868548,1763051447134,-7358.67,0.00019339,2]
[393868549,1763051447145,-499.99,0.00019339,2]
[393868550,1763051447154,-9999.99,0.00019339,2]
[393868551,1763051447164,-1177.56,0.00019339,2]
[393868552,1763051447175,-9999.99,0.00019339,2]
[393868553,1763051447184,-9999.99,0.00019339,2]
[393868554,1763051447193,-426.19,0.00019339,2]
[393868555,1763051447203,-150.99,0.00019339,2]
[393868557,1763051447215,-2947.18,0.00019339,2]
[393868558,1763051447224,-300.0,0.00019372,2]
[393868559,1763051447234,-500.0,0.00019425,2]
[393868560,1763051447244,-2598.78715,0.0001943,2]
[393868561,1763051447253,-850.96877755,0.00019438,2]
[393868562,1763051447265,-149.03122245,0.00019438,2]
[393868563,1763051447274,-1386.2051664,0.00019469,2]
[393868564,1763051447284,-1000.0,0.00019521,2]
[393868565,1763051447294,-624.14,0.00019521,2]
[393868566,1763051447303,-522.36176691,0.00019536,2]
[393868567,1763051447314,-2319.43805384,0.000197,2]
[393868568,1763051447324,-210.52,0.00019791,2]
[393868569,1763051447333,-624.14,0.00019795,2]
[393868570,1763051447344,-400.0,0.00019863,2]
[393868571,1763051447359,-1000.0,0.000199,7]
[393868572,1763051447369,-206.20770568,0.00019921,2]
[393868573,1763051447379,-216.98,0.0001993,2]
[393868574,1763051447389,-2598.78715,0.0001993,2]
[393868575,1763051447399,-428.29,0.00019934,2]
[393868576,1763051447407,-500.0,0.00019973,2]
[393868577,1763051447417,-36478.95653568,0.00019979,2]
[393868587,1763051706761,188.45,0.00016712,2]
[393868588,1763052027627,1396.07656,0.0003,120]
[393868595,1763052314841,150.0,0.00030137,120]
[393868596,1763052324638,166.66,0.00016736,2]
[393868614,1763052632344,-166.66,0.00017088,2]
[393868615,1763052632355,-212.84302275,0.00017088,2]
[393868616,1763052632365,-150.92577582,0.00017088,2]
[393868617,1763052632377,-250.0,0.0001709,2]
[393868618,1763052632392,-934.24,0.00017092,2]
[393868619,1763052632402,-1200.0,0.00017271,2]
[393868620,1763052632412,-715.03403075,0.00017272,2]
[393868621,1763052632425,-150.92577582,0.00017272,2]
[393868622,1763052632437,-1200.0,0.00017272,2]
[393868623,1763052632448,-300.0,0.00017272,2]
[393868624,1763052632459,-500.0,0.00017273,2]
[393868625,1763052632469,-500.0,0.00017273,2]
[393868626,1763052632480,-500.0,0.00017273,2]
[393868627,1763052632490,-500.0,0.00017273,2]
[393868628,1763052632501,-500.0,0.00017273,2]
[393868629,1763052632511,-500.0,0.00017273,2]
[393868630,1763052632522,-1000.0,0.00017273,2]
[393868631,1763052632534,-2500.0,0.00017273,2]
[393868632,1763052632545,-590.35,0.00017273,2]
[393868633,1763052632556,-27056.97457004,0.00017273,2]
[393868634,1763052632568,-451.94134075,0.00017273,2]
[393868635,1763052632579,-745.83,0.00017363,2]
[393868636,1763052632590,-745.83,0.00017363,2]
[393868637,1763052632601,-745.83,0.00017363,2]
[393868638,1763052632613,-500.0,0.00017372,2]
[393868639,1763052632624,-600.28142108,0.00017372,2]
[393868640,1763052632634,-500.0,0.00017372,2]
[393868641,1763052632646,-542.30660055,0.00017372,2]
[393868642,1763052632657,-500.0,0.00017372,2]
[393868643,1763052632668,-542.30660055,0.00017372,2]
[393868644,1763052632679,-500.0,0.00017372,2]
[393868645,1763052632690,-518.42040763,0.00017372,2]
[393868646,1763052632701,-500.0,0.00017372,2]
[393868647,1763052632713,-533.78,0.00017372,2]
[393868648,1763052632726,-500.0,0.00017372,2]
[393868649,1763052632737,-500.0,0.00017372,2]
[393868650,1763052632749,-500.0,0.00017372,2]
[393868651,1763052632760,-500.0,0.00017372,2]
[393868652,1763052632771,-500.0,0.00017372,2]
[393868653,1763052632782,-500.0,0.00017372,2]
[393868654,1763052632793,-500.0,0.00017373,2]
[393868655,1763052632804,-500.0,0.00017373,2]
[393868656,1763052632815,-500.0,0.00017373,2]
[393868657,1763052632826,-579.35361335,0.00017373,2]
[393868658,1763052632838,-33305.0021,0.00017373,2]
[393868659,1763052632849,-263875.40737586,0.00017373,2]
[393868660,1763052633334,-119619.05242708,0.00017373,2]
[393868661,1763052633346,-36505.54019706,0.00017373,2]
[393868662,1763052633358,-1000.0,0.00017373,2]
[393868663,1763052633368,-3003.1939,0.00017373,2]
[393868664,1763052633379,-166.66,0.0001744,2]
[393868665,1763052633390,-745.83,0.00017498,2]
[393868666,1763052633401,-17424.55,0.00017509,2]
[393868667,1763052633412,-500.0,0.00017528,2]
[393868668,1763052633422,-533.78,0.00017528,2]
[393868669,1763052633433,-500.0,0.00017528,2]
[393868670,1763052633444,-590.35,0.00017547,2]
[393868671,1763052633454,-365.21,0.00017566,2]
[393868672,1763052633465,-745.83,0.00017665,2]
[393868673,1763052633476,-504.68800049,0.00017673,2]
[393868674,1763052633487,-544.95382699,0.00017673,2]
[393868675,1763052633496,-108237.21,0.00017675,2]
[393868676,1763052633507,-20748.7,0.00017675,2]
[393868677,1763052633517,-150.0,0.00017675,2]
[393868678,1763052633528,-150.0,0.00017675,2]
[393868679,1763052633539,-166.66,0.00017793,2]
[393868680,1763052633552,-2000.0,0.000178,2]
[393868681,1763052633562,-590.35,0.00017821,2]
[393868682,1763052633573,-200.0,0.0001787,2]
[393868683,1763052633583,-1000.0,0.00017921,2]
[393868684,1763052633594,-310.88117895,0.00017979,2]
[393868685,1763052633605,-170.113,0.00017995,2]
[393868686,1763052633616,-888.48,0.00018082,2]
[393868687,1763052633628,-590.35,0.00018095,2]
[393868688,1763052633642,-166.66,0.00018145,2]
[393868689,1763052633653,-16810.65,0.00018355,2]
[393868690,1763052633664,-590.39610184,0.00018369,2]
[393868691,1763052633674,-503.0,0.00018411,2]
[393868692,1763052633684,-1852.42,0.00018474,2]
[393868693,1763052633695,-500.0,0.00018495,2]
[393868694,1763052633705,-166.66,0.00018497,2]
[393868695,1763052633717,-888.48,0.0001876,2]
[393868696,1763052633730,-250.0,0.00018797,2]
[393868697,1763052633740,-300.0,0.00018797,2]
[393868698,1763052633751,-250.0,0.00018797,2]
[393868699,1763052633764,-307.20857083,0.00018797,2]
[393868700,1763052633775,-2500.0,0.00018797,2]
[393868701,1763052633786,-1680.0,0.0001886,2]
[393868702,1763052633798,-420.0,0.0001886,2]
[393868703,1763052633809,-166.66,0.00019019,2]
[393868704,1763052633820,-14270.50008199,0.00019024,2]
[393868705,1763052633833,-12786.47448804,0.00019024,2]
[393868706,1763052633843,-451.94134066,0.00019024,2]
[393868707,1763052633854,-200.0,0.00019178,2]
[393868708,1763052633866,-9999.99,0.00019339,2]
[393868709,1763052633877,-3067.8,0.00019339,2]
[393868710,1763052633890,-150.99,0.00019339,2]
[393868711,1763052633900,-9999.99,0.00019339,2]
[393868712,1763052633911,-888.48,0.00019438,2]
[393868713,1763052633923,-1842.65537312,0.00019481,2]
[393868714,1763052633933,-437.92,0.00019503,2]
[393868715,1763052633945,-515.12719469,0.00019573,2]
[393868716,1763052633957,-518.01248713,0.00019573,2]
[393868717,1763052633969,-500.0,0.0001958,2]
[393868718,1763052633980,-533.78,0.0001958,2]
[393868719,1763052633990,-500.0,0.0001958,2]
[393868720,1763052634001,-500.0,0.0001958,2]
[393868721,1763052634013,-500.0,0.0001958,2]
[393868722,1763052634025,-500.0,0.0001958,2]
[393868723,1763052634035,-500.0,0.0001958,2]
[393868724,1763052634046,-3697.5341496,0.00019581,2]
[393868725,1763052634056,-118818.0117998,0.00019581,2]
[393868726,1763052634067,-2454.9734787,0.00019581,2]
[393868727,1763052634077,-38277.943736,0.00019581,2]
[393868728,1763052634090,-304.35354436,0.00019581,2]
[393868737,1763052637920,-33162.29044166,0.00019581,2]
[393868742,1763052639915,-2560.20953373,0.00019581,2]
[393868743,1763052639926,-16419.80863721,0.00019581,2]
[393868744,1763052639937,-2987.2,0.00019581,2]
[393868745,1763052639948,-636.75353518,0.00019581,2]
[393868746,1763052639959,-541.83535041,0.00019581,2]
[393868747,1763052639970,-5102.94508801,0.00019581,2]
[393868748,1763052640020,-46221.02174679,0.00019581,2]
[393868749,1763052640076,-300.35996914,0.00019581,2]
[393868750,1763052640089,-252.636388,0.00019581,2]
[393868795,1763052643053,-250.0,0.00017,2]
[393868796,1763052643063,-919.2182,0.00017273,2]
[393868797,1763052643073,-6036.87895627,0.00019581,2]
[393868798,1763052643125,-144063.67391274,0.00019581,2]
[393868799,1763052643134,-155.2406479,0.00019581,2]
[393868800,1763052643143,-2772.4103328,0.00019581,2]
[393868801,1763052643154,-166.66,0.00019646,2]
[393868802,1763052643163,-3332.07539816,0.0001978,2]
[393868803,1763052643173,-700.0,0.000198,7]
[393868804,1763052643186,-400.0,0.00019863,2]
[393868805,1763052643197,-1400.0,0.000199,7]
[393868806,1763052643206,-150.21,0.0001999,2]
[393868807,1763052643216,-150.21,0.0001999,2]
[393868808,1763052643226,-228.14329597,0.0001999,2]
[393868809,1763052643236,-174.1,0.00019998,2]
[393868810,1763052643245,-533.78,0.00019998,2]
[393868811,1763052643255,-500.0,0.00019998,2]
[393868812,1763052643265,-500.0,0.00019999,2]
[393868813,1763052643274,-500.0,0.00019999,2]
[393868814,1763052643285,-73006.11565374,0.0002,5]
[393868822,1763052645987,-279.92929,0.00019979,2]
[393868823,1763052645998,-6224.83730109,0.0002,5]
[393868824,1763052646010,-486.84630446,0.0002,5]
[393868825,1763052646249,-1265.55639731,0.0002,5]
[393868826,1763052646304,-85396.35582466,0.0002,5]
[393868827,1763052646314,-151.0,0.0002,7]
[393868828,1763052646324,-151.0,0.0002,7]
[393868829,1763052646334,-151.0,0.0002,7]
[393868830,1763052646345,-158.509599,0.0002,7]
[393868831,1763052646354,-372.45198094,0.0002,7]
[393868833,1763052646369,-190.71941806,0.0002,7]
[393868834,1763052646379,-519.0600526,0.0002,7]
[393868841,1763052737044,150.0,0.00017675,120]
[393868842,1763052776944,2677.74,0.00016744,2]
[393868843,1763052826914,1198.23885,0.00040727,120]
[393868844,1763052903714,248.0,0.0002055,120]
[393868853,1763053105146,161.31165601,0.000159,2]
[393868854,1763053105398,161.0,0.000159,2]
[393868855,1763053105649,161.0,0.000159,2]
[393868856,1763053105903,161.0,0.000159,2]
[393868857,1763053106153,161.0,0.000159,2]
[393868860,1763053199972,299.8,0.00016744,2]
[393868861,1763053234214,-171.99217336,0.00017073,2]
[393869061,1763053831925,-489.24785106,0.00017172,2]
[393869062,1763053831935,-252.44965603,0.00017172,2]
[393869063,1763053831946,-947.55034397,0.00017172,2]
[393869064,1763053831956,-2500.0,0.00017173,2]
[393869065,1763053831966,-657.98708895,0.00017173,2]
[393869066,1763053832019,-347.18893578,0.00017173,2]
[393869067,1763053832030,-574.9815518,0.00017173,2]
[393869068,1763053832042,-6708.87345425,0.00017173,2]
[393869069,1763053832123,-486.00479158,0.00017173,2]
[393869070,1763053832134,-13367.0367429,0.00017173,2]
[393869071,1763053832148,-361.5530726,0.00017173,2]
[393869072,1763053832157,-723.88379584,0.00017173,2]
[393869073,1763053832167,-10177.5836897,0.00017173,2]
[393869074,1763053832192,-81.5113303,0.00017173,2]
[393869075,1763053832203,-500.0,0.00017272,2]
[393869076,1763053832212,-500.0,0.00017272,2]
[393869077,1763053832221,-500.0,0.00017272,2]
[393869078,1763053832230,-333.15673373,0.00017272,2]
[393869079,1763053832240,-500.0,0.00017272,2]
[393869080,1763053832249,-518.42040763,0.00017272,2]
[393869082,1763053832258,-500.0,0.00017272,2]
[393869083,1763053832267,-518.42040763,0.00017272,2]
[393869084,1763053832276,-500.0,0.00017272,2]
[393869085,1763053832286,-518.42040763,0.00017272,2]
[393869086,1763053832296,-500.0,0.00017272,2]
[393869087,1763053832305,-518.42040763,0.00017272,2]
[393869088,1763053832314,-500.0,0.00017272,2]
[393869089,1763053832323,-518.42040763,0.00017272,2]
[393869090,1763053832333,-500.0,0.00017272,2]
[393869091,1763053832342,-518.42040763,0.00017272,2]
[393869092,1763053832351,-518.42040763,0.00017272,2]
[393869093,1763053832360,-500.0,0.00017272,2]
[393869094,1763053832374,-500.0,0.00017272,2]
[393869095,1763053832383,-518.42040763,0.00017272,2]
[393869096,1763053832396,-500.0,0.00017272,2]
[393869097,1763053832405,-518.42040763,0.00017272,2]
[393869098,1763053832414,-500.0,0.00017272,2]
[393869099,1763053832424,-518.42040763,0.00017272,2]
[393869100,1763053832432,-500.0,0.00017272,2]
[393869101,1763053832442,-518.42040763,0.00017272,2]
[393869102,1763053832451,-500.0,0.00017272,2]
[393869103,1763053832460,-518.42040763,0.00017272,2]
[393869104,1763053832469,-500.0,0.00017272,2]
[393869105,1763053832478,-518.42040763,0.00017272,2]
[393869106,1763053832488,-500.0,0.00017272,2]
[393869107,1763053832497,-518.42040763,0.00017272,2]
[393869108,1763053832506,-500.0,0.00017272,2]
[393869109,1763053832516,-518.42040763,0.00017272,2]
[393869110,1763053832525,-500.0,0.00017272,2]
[393869111,1763053832534,-484.01487943,0.00017272,2]
[393869112,1763053832547,-34.4055282,0.00017272,2]
[393869113,1763053832557,-500.0,0.00017272,2]
[393869114,1763053832566,-95.9044718,0.00017272,2]
[393869123,1763053837923,-422.51593583,0.00017272,2]
[393869124,1763053837933,-500.0,0.00017272,2]
[393869125,1763053837942,-518.42040763,0.00017272,2]
[393869126,1763053837951,-500.0,0.00017272,2]
[393869127,1763053837961,-518.42040763,0.00017272,2]
[393869128,1763053837970,-500.0,0.00017272,2]
[393869129,1763053837979,-631.57823066,0.00017272,2]
[393869130,1763053837988,-500.0,0.00017272,2]
[393869131,1763053837997,-631.57823066,0.00017272,2]
[393869132,1763053838143,-500.0,0.00017272,2]
[393869133,1763053838154,-631.57823066,0.00017272,2]
[393869134,1763053838166,-179.6268749,0.00017272,2]
[393869135,1763053838175,-230.31668166,0.00017272,2]
[393869136,1763053838185,-500.0,0.00017272,2]
[393869138,1763053838194,-500.0,0.00017272,2]
[393869139,1763053838204,-500.0,0.00017272,2]
[393869141,1763053838214,-500.0,0.00017272,2]
[393869143,1763053838223,-500.0,0.00017272,2]
[393869144,1763053838233,-500.0,0.00017272,2]
[393869145,1763053838242,-500.0,0.00017272,2]
[393869147,1763053838252,-500.0,0.00017272,2]
[393869149,1763053838261,-235.58027349,0.00017272,2]
[393869151,1763053838270,-500.0,0.00017272,2]
[393869153,1763053838280,-500.0,0.00017272,2]
[393869155,1763053838289,-500.0,0.00017272,2]
[393869157,1763053838298,-510.15515968,0.00017272,2]
[393869159,1763053838307,-257.73915746,0.00017272,2]
[393869161,1763053838319,-242.26084254,0.00017272,2]
[393869163,1763053838329,-500.0,0.00017272,2]
[393869165,1763053838338,-500.0,0.00017272,2]
[393869167,1763053838347,-500.0,0.00017272,2]
[393869169,1763053838357,-197.52622172,0.00017272,2]
[393869171,1763053838366,-64377.96799845,0.00017273,2]
[393869173,1763053838378,-841.69394786,0.00017273,2]
[393869176,1763053838390,-1601.4999,0.00017273,2]
[393869178,1763053838401,-576.55739814,0.00017273,2]
[393869180,1763053838412,-394.572,0.00017273,2]
[393869211,1763053839977,-48152.95596902,0.00017273,2]
[393869212,1763053840032,-5843.74,0.00017273,2]
[393869213,1763053840043,-4483.7062822,0.00017273,2]
[393869214,1763053840054,-13926.67665796,0.00017273,2]
[393869215,1763053840085,-2126.0,0.00017273,2]
[393869216,1763053840853,-10250.8,0.00017273,2]
[393869217,1763053840875,-853.3284752,0.00017273,2]
[393869218,1763053840983,-46760.2211554,0.00017273,2]
[393869219,1763053841036,-219810.28021577,0.00017273,2]
[393869220,1763053841046,-1000.0,0.00017273,2]
[393869221,1763053841056,-33305.0021,0.00017273,2]
[393869222,1763053841066,-70354.48774419,0.000173,2]
[393869241,1763053843210,-533.77400246,0.000173,2]
[393869245,1763053843278,-87.746544,0.000173,2]
[393869248,1763053843475,-19707.0,0.000173,2]
[393869249,1763053843487,-6619.23390236,0.000173,2]
[393869250,1763053843496,-299.8,0.00017674,2]
[393869251,1763053843506,-150.0,0.00017675,2]
[393869252,1763053843516,-171.27,0.00018272,2]
[393869253,1763053843525,-2000.0,0.000184,2]
[393869255,1763053843535,-299.8,0.00018604,2]
[393869259,1763053843660,-22142.07256522,0.00018936,2]
[393869261,1763053843670,-10259.09501995,0.00018936,2]
[393869263,1763053843679,-150.0,0.00019325,2]
[393869264,1763053843689,-302.0,0.00019325,2]
[393869265,1763053843698,-723.88379578,0.00019439,2]
[393869266,1763053843707,-299.8,0.00019534,2]
[393869267,1763053843716,-1000.0,0.000196,2]
[393869268,1763053843726,-361.55307252,0.00019778,2]
[393869269,1763053843735,-200.0,0.00019839,2]
[393869270,1763053843745,-233.27441,0.00019999,2]
[393869272,1763053843754,-200.0,0.00020114,2]
[393869274,1763053843763,-888.48,0.00020116,2]
[393869276,1763053843773,-511.63,0.00020187,2]
[393869278,1763053843782,-210.52,0.00020213,2]
[393869280,1763053843791,-166.66,0.00020274,2]
[393869282,1763053843800,-250.0,0.00020413,2]
[393869284,1763053843810,-299.8,0.00020464,2]
[393869286,1763053843819,-21331.78,0.00020548,2]
[393869288,1763053843828,-22142.07256522,0.00020698,2]
[393869290,1763053843837,-10259.09501995,0.00020698,2]
[393869292,1763053843847,-1000.0,0.000207,2]
[393869294,1763053843856,-300.0,0.00020742,2]
[393869295,1763053843866,-350.33,0.00020747,2]
[393869296,1763053843876,-888.48,0.00020795,2]
[393869297,1763053843887,-166.66,0.00020902,2]
[393869298,1763053843897,-208.71,0.00020951,2]
[393869299,1763053843907,-9999.99,0.00020951,2]
[393869300,1763053843916,-1660.32,0.00020951,2]
[393869301,1763053843925,-150.99,0.00020951,2]
[393869302,1763053843934,-2005.154,0.00021,2]
[393869303,1763053843943,-200.0,0.00021,2]
[393869304,1763053843952,-4757.44,0.00021068,2]
[393869305,1763053843962,-183.58513012,0.00021194,2]
[393869306,1763053843971,-1000.0,0.00021331,2]
[393869307,1763053843980,-299.8,0.00021395,2]
[393869308,1763053843989,-401.22136414,0.000215,2]
[393869309,1763053843997,-166.66,0.0002153,2]
[393869310,1763053844007,-150.0,0.00021645,5]
[393869311,1763053844016,-500.0,0.00021671,2]
[393869312,1763053844025,-209.66167998,0.00021685,2]
[393869313,1763053844036,-723.88379578,0.00021705,2]
[393869314,1763053844046,-1000.0,0.000219,2]
[393869315,1763053844056,-5000.0,0.00021918,2]
[393869316,1763053844075,-233.27441,0.00021999,2]
[393869317,1763053844085,-457.78604508,0.00021999,2]
[393869318,1763053844095,-635.78472519,0.00021999,2]
[393869319,1763053844104,-500.0,0.00021999,2]
[393869320,1763053844115,-371.1869827,0.00021999,2]
[393869321,1763053844125,-500.0,0.00021999,2]
[393869322,1763053844134,-500.0,0.00021999,2]
[393869323,1763053844144,-500.0,0.00021999,2]
[393869324,1763053844155,-500.0,0.00021999,2]
[393869325,1763053844165,-4111.2418498,0.00022,2]